[Event "Early-Titled-Tuesday-Blitz-September-12-2023"]
[Site "Chess.com"]
[Date "2023.09.12"]
[Round "9"]
[White "Leonid_Starozhilov"]
[Black "Arek_pacitan"]
[Result "1-0"]
[WhiteElo "2781"]
[BlackElo "2608"]
[TimeControl "180+1"]
[EndTime "9:45:47 PDT"]
[Termination "Leonid_Starozhilov won by resignation"]

1. e4 {[%clk 0:03:00.9]} 1... c5 {[%clk 0:02:50.1]} 2. Nf3 {[%clk 0:03:00.8]}
2... d6 {[%clk 0:02:44.3]} 3. Bb5+ {[%clk 0:03:00.6]} 3... Bd7 {[%clk
0:02:38.2]} 4. c4 {[%clk 0:03:00.5]} 4... Nc6 {[%clk 0:02:27.8]} 5. Nc3 {[%clk
0:03:00.4]} 5... Nf6 {[%clk 0:02:24.1]} 6. O-O {[%clk 0:02:56]} 6... e5 {[%clk
0:02:23.9]} 7. a3 {[%clk 0:02:55.8]} 7... Be7 {[%clk 0:02:23.9]} 8. Rb1 {[%clk
0:02:53.6]} 8... O-O {[%clk 0:02:23.3]} 9. b4 {[%clk 0:02:53.3]} 9... cxb4
{[%clk 0:02:16.5]} 10. axb4 {[%clk 0:02:54.2]} 10... a6 {[%clk 0:02:17.1]} 11.
Ba4 {[%clk 0:02:34.3]} 11... Bg4 {[%clk 0:02:13.1]} 12. h3 {[%clk 0:02:27.6]}
12... Bxf3 {[%clk 0:02:12.8]} 13. Qxf3 {[%clk 0:02:27.4]} 13... Nd4 {[%clk
0:02:13.7]} 14. Qd1 {[%clk 0:02:27.6]} 14... Qc7 {[%clk 0:02:04.2]} 15. d3
{[%clk 0:02:13.7]} 15... b5 {[%clk 0:02:03.8]} 16. Bb3 {[%clk 0:02:13.5]} 16...
Nxb3 {[%clk 0:01:51]} 17. Qxb3 {[%clk 0:02:09.3]} 17... Rfc8 {[%clk 0:01:51.1]}
18. Nd5 {[%clk 0:01:56.7]} 18... Nxd5 {[%clk 0:01:50.6]} 19. cxd5 {[%clk
0:01:57.2]} 19... Qd8 {[%clk 0:01:37.9]} 20. Be3 {[%clk 0:01:44.3]} 20... Bg5
{[%clk 0:01:37.8]} 21. Qd1 {[%clk 0:01:08.8]} 21... Bxe3 {[%clk 0:01:35.2]} 22.
fxe3 {[%clk 0:01:09.7]} 22... Qg5 {[%clk 0:01:31.2]} 23. Qf3 {[%clk 0:01:06.6]}
23... f6 {[%clk 0:01:31.2]} 24. Rfc1 {[%clk 0:01:04.6]} 24... h6 {[%clk
0:01:25.1]} 25. Rc6 {[%clk 0:01:00]} 25... Rxc6 {[%clk 0:01:20.5]} 26. dxc6
{[%clk 0:01:00.4]} 26... Rc8 {[%clk 0:01:20]} 27. Rc1 {[%clk 0:01:00.4]} 27...
Kf7 {[%clk 0:01:20]} 28. c7 {[%clk 0:00:37.3]} 28... Ke7 {[%clk 0:01:18.9]} 29.
h4 {[%clk 0:00:33.9]} 29... Qg6 {[%clk 0:01:09.4]} 30. Qh3 {[%clk 0:00:27.4]}
30... Qe8 {[%clk 0:00:49.1]} 31. h5 {[%clk 0:00:19.2]} 31... Qd7 {[%clk
0:00:44.9]} 32. Qg3 {[%clk 0:00:16.2]} 32... Kf8 {[%clk 0:00:41]} 33. Ra1 {[%clk
0:00:15.4]} 33... Ra8 {[%clk 0:00:24.7]} 34. Rc1 {[%clk 0:00:12.8]} 34... Rc8
{[%clk 0:00:23.3]} 35. Ra1 {[%clk 0:00:13.3]} 35... Rxc7 {[%clk 0:00:19.5]} 36.
Rxa6 {[%clk 0:00:12.9]} 36... Ra7 {[%clk 0:00:17.3]} 37. Rb6 {[%clk 0:00:09.9]}
37... Qc7 {[%clk 0:00:16.6]} 38. Rxb5 {[%clk 0:00:10.3]} 38... Rb7 {[%clk
0:00:13]} 39. Rxb7 {[%clk 0:00:09.3]} 39... Qxb7 {[%clk 0:00:13.9]} 40. Qe1
{[%clk 0:00:08.9]} 40... Qb5 {[%clk 0:00:12.7]} 41. Qc3 {[%clk 0:00:08.6]} 41...
Kg8 {[%clk 0:00:12.9]} 42. Qc4+ {[%clk 0:00:08.8]} 42... Qxc4 {[%clk 0:00:12.8]}
43. dxc4 {[%clk 0:00:09.7]} 43... Kf8 {[%clk 0:00:13.7]} 44. Kf2 {[%clk
0:00:09.6]} 44... Ke7 {[%clk 0:00:14.3]} 45. Kf3 {[%clk 0:00:10]} 45... Ke6
{[%clk 0:00:14.2]} 46. Kg4 {[%clk 0:00:10.4]} 1-0

[Event "Early-Titled-Tuesday-Blitz-September-12-2023"]
[Site "Chess.com"]
[Date "2023.09.12"]
[Round "9"]
[White "Happy1712Drummer"]
[Black "ural58"]
[Result "0-1"]
[WhiteElo "2351"]
[BlackElo "2543"]
[TimeControl "180+1"]
[EndTime "9:45:48 PDT"]
[Termination "ural58 won on time"]

1. e4 {[%clk 0:03:00.9]} 1... d5 {[%clk 0:02:53.8]} 2. exd5 {[%clk 0:02:58.9]}
2... Qxd5 {[%clk 0:02:51.5]} 3. Nc3 {[%clk 0:02:58.9]} 3... Qd6 {[%clk
0:02:50.9]} 4. d4 {[%clk 0:02:54.7]} 4... c6 {[%clk 0:02:49.6]} 5. Nf3 {[%clk
0:02:54.3]} 5... Bf5 {[%clk 0:02:46.1]} 6. g3 {[%clk 0:02:32.5]} 6... e6 {[%clk
0:02:42.8]} 7. Bf4 {[%clk 0:02:32.4]} 7... Qb4 {[%clk 0:02:31.1]} 8. Rb1 {[%clk
0:01:49]} 8... Nd7 {[%clk 0:02:28.4]} 9. Bg2 {[%clk 0:01:48.4]} 9... Ngf6 {[%clk
0:02:27.3]} 10. a3 {[%clk 0:01:48.1]} 10... Qa5 {[%clk 0:02:25.8]} 11. O-O
{[%clk 0:01:47.8]} 11... Be7 {[%clk 0:02:21.4]} 12. Re1 {[%clk 0:01:16.3]} 12...
O-O {[%clk 0:02:17.5]} 13. Nh4 {[%clk 0:01:14.6]} 13... Bg4 {[%clk 0:02:08.9]}
14. Qd2 {[%clk 0:00:58.4]} 14... Bh5 {[%clk 0:01:44.5]} 15. h3 {[%clk
0:00:44.5]} 15... Qd8 {[%clk 0:01:42.5]} 16. Nf3 {[%clk 0:00:37.2]} 16... Nd5
{[%clk 0:01:30.2]} 17. Ne4 {[%clk 0:00:20.2]} 17... Bg6 {[%clk 0:01:29.4]} 18.
c4 {[%clk 0:00:19.2]} 18... Nxf4 {[%clk 0:01:28.3]} 19. Qxf4 {[%clk 0:00:20.1]}
19... Nf6 {[%clk 0:01:20.5]} 20. Nxf6+ {[%clk 0:00:18.6]} 20... Bxf6 {[%clk
0:01:20.8]} 21. Rbd1 {[%clk 0:00:19.3]} 21... Bc2 {[%clk 0:01:15]} 22. Rd2
{[%clk 0:00:17]} 22... Bb3 {[%clk 0:01:15.1]} 23. Rc1 {[%clk 0:00:10.6]} 23...
a5 {[%clk 0:01:10.1]} 24. h4 {[%clk 0:00:09.8]} 24... h6 {[%clk 0:01:09.4]} 25.
Ne5 {[%clk 0:00:07.8]} 25... a4 {[%clk 0:01:00.5]} 26. Ng4 {[%clk 0:00:07]}
26... Be7 {[%clk 0:00:56.5]} 27. d5 {[%clk 0:00:05.2]} 27... cxd5 {[%clk
0:00:54.2]} 28. cxd5 {[%clk 0:00:05.5]} 28... Bxd5 {[%clk 0:00:51.5]} 29. Bxd5
{[%clk 0:00:05.8]} 29... exd5 {[%clk 0:00:51.8]} 30. Ne3 {[%clk 0:00:05.9]}
30... Qb8 {[%clk 0:00:33.3]} 31. Qxb8 {[%clk 0:00:05.4]} 31... Raxb8 {[%clk
0:00:33]} 32. Nxd5 {[%clk 0:00:05.1]} 32... Bd8 {[%clk 0:00:28.6]} 33. Rc4
{[%clk 0:00:05.1]} 33... b5 {[%clk 0:00:28.5]} 34. Re4 {[%clk 0:00:04.9]} 34...
f5 {[%clk 0:00:27.1]} 35. Ree2 {[%clk 0:00:02.8]} 35... Ba5 {[%clk 0:00:20.5]}
36. Rc2 {[%clk 0:00:02.4]} 36... b4 {[%clk 0:00:20.8]} 37. axb4 {[%clk
0:00:02.1]} 37... Bxb4 {[%clk 0:00:21.1]} 38. Nxb4 {[%clk 0:00:02.8]} 38... Rxb4
{[%clk 0:00:21.2]} 39. Re7 {[%clk 0:00:03.2]} 39... Kh8 {[%clk 0:00:16.9]} 40.
Rcc7 {[%clk 0:00:02.9]} 40... Rg8 {[%clk 0:00:17.2]} 41. Ra7 {[%clk 0:00:02]}
41... f4 {[%clk 0:00:17.2]} 42. gxf4 {[%clk 0:00:01.9]} 42... Rxf4 {[%clk
0:00:16.7]} 43. h5 {[%clk 0:00:01.8]} 43... Rg4+ {[%clk 0:00:16.1]} 44. Kf1
{[%clk 0:00:02.1]} 44... Rh4 {[%clk 0:00:17]} 45. Re5 {[%clk 0:00:02]} 45... Rb8
{[%clk 0:00:15.9]} 46. Ree7 {[%clk 0:00:02.3]} 46... Rg4 {[%clk 0:00:16.2]} 0-1

[Event "Early-Titled-Tuesday-Blitz-September-12-2023"]
[Site "Chess.com"]
[Date "2023.09.12"]
[Round "9"]
[White "Dacean99"]
[Black "AsselLesbekova"]
[Result "0-1"]
[WhiteElo "2519"]
[BlackElo "2365"]
[TimeControl "180+1"]
[EndTime "9:45:49 PDT"]
[Termination "AsselLesbekova won by resignation"]

1. d4 {[%clk 0:03:00.9]} 1... d5 {[%clk 0:02:59.9]} 2. Nf3 {[%clk 0:03:01.5]}
2... e6 {[%clk 0:02:59.4]} 3. c4 {[%clk 0:03:02.1]} 3... a6 {[%clk 0:02:59.2]}
4. Nc3 {[%clk 0:03:02.7]} 4... dxc4 {[%clk 0:02:58.9]} 5. a4 {[%clk 0:03:02.4]}
5... c5 {[%clk 0:02:56.6]} 6. e3 {[%clk 0:03:00.6]} 6... cxd4 {[%clk 0:02:45.3]}
7. exd4 {[%clk 0:03:01.5]} 7... Qc7 {[%clk 0:02:38.5]} 8. g3 {[%clk 0:02:49.5]}
8... Nf6 {[%clk 0:02:37.6]} 9. Bf4 {[%clk 0:02:49.2]} 9... Bd6 {[%clk 0:02:35]}
10. Bxd6 {[%clk 0:02:48.9]} 10... Qxd6 {[%clk 0:02:35.4]} 11. Bg2 {[%clk
0:02:49.3]} 11... Nc6 {[%clk 0:02:29.9]} 12. O-O {[%clk 0:02:48.4]} 12... O-O
{[%clk 0:02:29.6]} 13. Qd2 {[%clk 0:02:40.2]} 13... Rd8 {[%clk 0:02:27.2]} 14.
Rad1 {[%clk 0:02:37.2]} 14... Rb8 {[%clk 0:02:23.2]} 15. Qg5 {[%clk 0:02:31.8]}
15... h6 {[%clk 0:02:19]} 16. Qc5 {[%clk 0:02:29.6]} 16... b5 {[%clk 0:02:03.6]}
17. axb5 {[%clk 0:02:27.1]} 17... axb5 {[%clk 0:01:57.8]} 18. Qxd6 {[%clk
0:02:08.7]} 18... Rxd6 {[%clk 0:01:58.7]} 19. Ne5 {[%clk 0:02:07.5]} 19... Ne7
{[%clk 0:01:36.1]} 20. Rfe1 {[%clk 0:01:55.1]} 20... Ba6 {[%clk 0:01:31.1]} 21.
Na2 {[%clk 0:01:53.3]} 21... Nfd5 {[%clk 0:01:17.7]} 22. Ra1 {[%clk 0:01:45.9]}
22... b4 {[%clk 0:01:12.9]} 23. Rec1 {[%clk 0:01:43.6]} 23... Rc8 {[%clk
0:01:10.1]} 24. Rd1 {[%clk 0:01:29.7]} 24... c3 {[%clk 0:01:04.5]} 25. bxc3
{[%clk 0:01:26.8]} 25... b3 {[%clk 0:00:43]} 26. c4 {[%clk 0:01:05.1]} 26...
Bxc4 {[%clk 0:00:34]} 27. Nxc4 {[%clk 0:00:59.9]} 27... Rxc4 {[%clk 0:00:34.9]}
28. Rac1 {[%clk 0:00:59.7]} 28... Rxc1 {[%clk 0:00:27]} 29. Nxc1 {[%clk
0:01:00.6]} 29... b2 {[%clk 0:00:25.6]} 30. Nd3 {[%clk 0:00:59.7]} 30... Nc3
{[%clk 0:00:25.8]} 31. Nxb2 {[%clk 0:00:58.5]} 31... Nxd1 {[%clk 0:00:26.1]} 32.
Nxd1 {[%clk 0:00:59.4]} 32... Rxd4 {[%clk 0:00:26.6]} 33. Ne3 {[%clk 0:01:00.3]}
33... Nf5 {[%clk 0:00:24]} 34. Nxf5 {[%clk 0:00:54.5]} 34... exf5 {[%clk
0:00:24.9]} 35. h4 {[%clk 0:00:53.9]} 35... Kf8 {[%clk 0:00:25.1]} 36. Bf3
{[%clk 0:00:54]} 36... Ke7 {[%clk 0:00:25.3]} 37. Kg2 {[%clk 0:00:54.7]} 37...
Kf6 {[%clk 0:00:25.4]} 38. Be2 {[%clk 0:00:54.3]} 38... Ke5 {[%clk 0:00:23.1]}
39. Bb5 {[%clk 0:00:52.3]} 39... Rb4 {[%clk 0:00:23.2]} 40. Be8 {[%clk 0:00:52]}
40... f6 {[%clk 0:00:22.4]} 41. Bg6 {[%clk 0:00:50.8]} 41... Rb8 {[%clk
0:00:20.5]} 42. Bh7 {[%clk 0:00:49.8]} 42... f4 {[%clk 0:00:20.2]} 43. g4 {[%clk
0:00:48.1]} 43... Rb2 {[%clk 0:00:17.3]} 44. h5 {[%clk 0:00:47.8]} 44... Rd2
{[%clk 0:00:15.9]} 45. Bg6 {[%clk 0:00:47.2]} 45... Kd4 {[%clk 0:00:16.5]} 46.
Kf3 {[%clk 0:00:47.4]} 46... Rb2 {[%clk 0:00:16.8]} 47. Bf5 {[%clk 0:00:46.9]}
47... Kc3 {[%clk 0:00:15.7]} 48. Be6 {[%clk 0:00:45.5]} 48... Rb4 {[%clk
0:00:14.5]} 49. Bf5 {[%clk 0:00:44.8]} 49... Kd2 {[%clk 0:00:15]} 50. Be4 {[%clk
0:00:43.2]} 50... Ke1 {[%clk 0:00:15.2]} 51. Kxf4 {[%clk 0:00:42.1]} 51... Kxf2
{[%clk 0:00:15.8]} 52. Kf5 {[%clk 0:00:42.7]} 52... Kg3 {[%clk 0:00:15]} 53. g5
{[%clk 0:00:34.5]} 53... fxg5 {[%clk 0:00:12.9]} 54. Bd5 {[%clk 0:00:33.9]}
54... Rb5 {[%clk 0:00:11.9]} 55. Ke4 {[%clk 0:00:34.3]} 55... Rxd5 {[%clk
0:00:11.8]} 56. Kxd5 {[%clk 0:00:35.2]} 56... Kh4 {[%clk 0:00:12.4]} 57. Ke6
{[%clk 0:00:36.1]} 57... Kxh5 {[%clk 0:00:12.6]} 58. Kf5 {[%clk 0:00:36.8]}
58... g4 {[%clk 0:00:12.7]} 59. Kf4 {[%clk 0:00:37.1]} 59... Kh4 {[%clk
0:00:13.4]} 0-1

[Event "Early-Titled-Tuesday-Blitz-September-12-2023"]
[Site "Chess.com"]
[Date "2023.09.12"]
[Round "9"]
[White "ploxoi"]
[Black "Grossboss19"]
[Result "1-0"]
[WhiteElo "2413"]
[BlackElo "2529"]
[TimeControl "180+1"]
[EndTime "9:45:50 PDT"]
[Termination "ploxoi won on time"]

1. d4 {[%clk 0:03:00.9]} 1... c6 {[%clk 0:02:52.6]} 2. c4 {[%clk 0:03:00.6]}
2... Nf6 {[%clk 0:02:52.8]} 3. Nf3 {[%clk 0:03:01]} 3... g6 {[%clk 0:02:52]} 4.
g3 {[%clk 0:02:56.1]} 4... Bg7 {[%clk 0:02:50.9]} 5. Bg2 {[%clk 0:02:56.8]} 5...
O-O {[%clk 0:02:46.8]} 6. O-O {[%clk 0:02:56.8]} 6... d5 {[%clk 0:02:46.1]} 7.
b3 {[%clk 0:02:56.7]} 7... b6 {[%clk 0:02:34.1]} 8. Bb2 {[%clk 0:02:54.7]} 8...
Bb7 {[%clk 0:02:33]} 9. Nbd2 {[%clk 0:02:52.2]} 9... Nbd7 {[%clk 0:02:31.1]} 10.
Ne5 {[%clk 0:02:51.8]} 10... e6 {[%clk 0:02:17.8]} 11. e4 {[%clk 0:02:44.2]}
11... dxe4 {[%clk 0:01:57.7]} 12. Nxe4 {[%clk 0:02:45.1]} 12... Nxe4 {[%clk
0:01:55.9]} 13. Bxe4 {[%clk 0:02:46]} 13... Nxe5 {[%clk 0:01:50.7]} 14. dxe5
{[%clk 0:02:46.9]} 14... Qc7 {[%clk 0:01:50]} 15. f4 {[%clk 0:02:37]} 15... Rad8
{[%clk 0:01:36.2]} 16. Qe2 {[%clk 0:02:36.4]} 16... c5 {[%clk 0:01:35]} 17. Rad1
{[%clk 0:02:34.6]} 17... Bxe4 {[%clk 0:01:28.9]} 18. Qxe4 {[%clk 0:02:33]} 18...
h5 {[%clk 0:01:23.7]} 19. Kg2 {[%clk 0:02:27]} 19... Rxd1 {[%clk 0:01:18.1]} 20.
Rxd1 {[%clk 0:02:26]} 20... Rd8 {[%clk 0:01:18.6]} 21. Qe2 {[%clk 0:02:14.7]}
21... Rd7 {[%clk 0:01:14]} 22. Bc3 {[%clk 0:02:13.7]} 22... Qd8 {[%clk
0:01:12.7]} 23. Rxd7 {[%clk 0:02:13.7]} 23... Qxd7 {[%clk 0:01:13.6]} 24. Qf3
{[%clk 0:02:12.4]} 24... Kh7 {[%clk 0:01:11.4]} 25. Kf2 {[%clk 0:02:11.1]} 25...
b5 {[%clk 0:01:04.9]} 26. cxb5 {[%clk 0:02:08.5]} 26... Qxb5 {[%clk 0:01:01.6]}
27. Qe4 {[%clk 0:02:09]} 27... Qa6 {[%clk 0:00:53.4]} 28. Qe2 {[%clk 0:01:37.4]}
28... Qb6 {[%clk 0:00:46.1]} 29. Qc4 {[%clk 0:01:36.2]} 29... Bf8 {[%clk
0:00:42.3]} 30. f5 {[%clk 0:01:07]} 30... gxf5 {[%clk 0:00:29.3]} 31. Qh4 {[%clk
0:01:06.7]} 31... c4+ {[%clk 0:00:20.4]} 32. Bd4 {[%clk 0:01:05.5]} 32... Bc5
{[%clk 0:00:20.2]} 33. Qxh5+ {[%clk 0:00:48.4]} 33... Kg7 {[%clk 0:00:20.4]} 34.
Qg5+ {[%clk 0:00:47.3]} 34... Kf8 {[%clk 0:00:20]} 35. Qh6+ {[%clk 0:00:47.7]}
35... Ke8 {[%clk 0:00:19.5]} 36. Bxc5 {[%clk 0:00:42.1]} 36... Qxc5+ {[%clk
0:00:19.5]} 37. Qe3 {[%clk 0:00:42.8]} 37... Qa5 {[%clk 0:00:13.6]} 38. bxc4
{[%clk 0:00:33.6]} 38... Qxa2+ {[%clk 0:00:13.7]} 39. Qe2 {[%clk 0:00:34.3]}
39... Qa1 {[%clk 0:00:11.4]} 40. h4 {[%clk 0:00:32.4]} 40... Qd4+ {[%clk
0:00:10.7]} 41. Kg2 {[%clk 0:00:31]} 41... a5 {[%clk 0:00:10.9]} 42. h5 {[%clk
0:00:30.6]} 42... Kf8 {[%clk 0:00:09.6]} 43. h6 {[%clk 0:00:13]} 43... Kg8
{[%clk 0:00:09.2]} 44. Qh5 {[%clk 0:00:13.7]} 44... Qe4+ {[%clk 0:00:04.6]} 45.
Kh2 {[%clk 0:00:12.9]} 45... Qxe5 {[%clk 0:00:03.5]} 46. h7+ {[%clk 0:00:13.4]}
46... Kh8 {[%clk 0:00:03.5]} 47. Qxf7 {[%clk 0:00:13.7]} 1-0

[Event "Early-Titled-Tuesday-Blitz-September-12-2023"]
[Site "Chess.com"]
[Date "2023.09.12"]
[Round "9"]
[White "JimDiGrease"]
[Black "OparinGrigoriy"]
[Result "1-0"]
[WhiteElo "2874"]
[BlackElo "3005"]
[TimeControl "180+1"]
[EndTime "9:45:54 PDT"]
[Termination "JimDiGrease won by resignation"]

1. d4 {[%clk 0:03:00.9]} 1... Nf6 {[%clk 0:02:59.8]} 2. c4 {[%clk 0:03:00.4]}
2... e6 {[%clk 0:03:00.5]} 3. Bf4 {[%clk 0:03:00.2]} 3... b6 {[%clk 0:02:59.5]}
4. Nc3 {[%clk 0:02:58.5]} 4... Bb7 {[%clk 0:02:59]} 5. e3 {[%clk 0:02:58.9]}
5... Bb4 {[%clk 0:02:58.5]} 6. Ne2 {[%clk 0:02:59.3]} 6... O-O {[%clk
0:02:58.2]} 7. a3 {[%clk 0:02:59.9]} 7... Be7 {[%clk 0:02:57.9]} 8. d5 {[%clk
0:03:00.5]} 8... Re8 {[%clk 0:02:48]} 9. Ng3 {[%clk 0:02:41.5]} 9... d6 {[%clk
0:02:34.9]} 10. Be2 {[%clk 0:02:30.7]} 10... Nbd7 {[%clk 0:02:35.2]} 11. e4
{[%clk 0:02:28.3]} 11... Bf8 {[%clk 0:02:30.4]} 12. O-O {[%clk 0:02:27]} 12...
g6 {[%clk 0:02:11.9]} 13. b4 {[%clk 0:02:12.4]} 13... Bg7 {[%clk 0:02:10.9]} 14.
Rc1 {[%clk 0:02:06.5]} 14... a5 {[%clk 0:02:09.1]} 15. Qd2 {[%clk 0:02:04.2]}
15... axb4 {[%clk 0:02:08.9]} 16. axb4 {[%clk 0:02:04.6]} 16... Ne5 {[%clk
0:01:55.5]} 17. dxe6 {[%clk 0:01:48.3]} 17... Rxe6 {[%clk 0:01:51.1]} 18. Rfd1
{[%clk 0:01:34.5]} 18... Nc6 {[%clk 0:01:39.7]} 19. Rb1 {[%clk 0:01:23.7]} 19...
Ra3 {[%clk 0:01:24.6]} 20. Nb5 {[%clk 0:00:53.3]} 20... Rxg3 {[%clk 0:01:17.2]}
21. Bxg3 {[%clk 0:00:51.4]} 21... Nxe4 {[%clk 0:01:17.5]} 22. Qc2 {[%clk
0:00:47.8]} 22... h5 {[%clk 0:00:55.2]} 23. Bf3 {[%clk 0:00:46.2]} 23... h4
{[%clk 0:00:48.8]} 24. Bf4 {[%clk 0:00:29.9]} 24... Qe7 {[%clk 0:00:37.5]} 25.
Re1 {[%clk 0:00:25]} 25... Ng5 {[%clk 0:00:31.4]} 26. Rxe6 {[%clk 0:00:09.2]}
26... Nxf3+ {[%clk 0:00:31.6]} 27. gxf3 {[%clk 0:00:10.1]} 27... Qxe6 {[%clk
0:00:32.2]} 28. Qe4 {[%clk 0:00:07.7]} 28... Qd7 {[%clk 0:00:24.3]} 29. Re1
{[%clk 0:00:07.2]} 29... Be5 {[%clk 0:00:17.1]} 30. Bxe5 {[%clk 0:00:06.6]}
30... dxe5 {[%clk 0:00:18]} 31. Nc3 {[%clk 0:00:04.3]} 31... Kg7 {[%clk
0:00:15.1]} 32. Nd5 {[%clk 0:00:04.8]} 32... f6 {[%clk 0:00:13.9]} 33. Qxh4
{[%clk 0:00:05.1]} 33... Qf5 {[%clk 0:00:11.8]} 34. Re3 {[%clk 0:00:03.3]} 34...
Nd4 {[%clk 0:00:12.1]} 35. f4 {[%clk 0:00:03.7]} 35... Bxd5 {[%clk 0:00:10.8]}
36. cxd5 {[%clk 0:00:03.3]} 36... g5 {[%clk 0:00:06.7]} 37. fxg5 {[%clk
0:00:02.2]} 37... Nf3+ {[%clk 0:00:06.5]} 38. Rxf3 {[%clk 0:00:02.6]} 38... Qxf3
{[%clk 0:00:07.4]} 39. Qh6+ {[%clk 0:00:02.7]} 39... Kf7 {[%clk 0:00:05.6]} 40.
Qxf6+ {[%clk 0:00:02.8]} 40... Qxf6 {[%clk 0:00:05.5]} 41. gxf6 {[%clk
0:00:03.7]} 41... Kxf6 {[%clk 0:00:06.4]} 42. h4 {[%clk 0:00:04.5]} 42... Kf5
{[%clk 0:00:06.2]} 43. Kg2 {[%clk 0:00:04.6]} 43... Kg4 {[%clk 0:00:06.7]} 44.
b5 {[%clk 0:00:03.1]} 44... Kxh4 {[%clk 0:00:06.6]} 45. Kf3 {[%clk 0:00:03.8]}
45... Kg5 {[%clk 0:00:03.9]} 46. Ke4 {[%clk 0:00:04.5]} 46... Kf6 {[%clk
0:00:03.1]} 47. f3 {[%clk 0:00:05.2]} 47... Kf7 {[%clk 0:00:03.8]} 48. Kxe5
{[%clk 0:00:05.9]} 48... Ke7 {[%clk 0:00:04.5]} 49. f4 {[%clk 0:00:06.6]} 49...
Kf7 {[%clk 0:00:04.9]} 50. d6 {[%clk 0:00:06.8]} 1-0

[Event "Early-Titled-Tuesday-Blitz-September-12-2023"]
[Site "Chess.com"]
[Date "2023.09.12"]
[Round "9"]
[White "baki83"]
[Black "vi_pranav"]
[Result "0-1"]
[WhiteElo "2809"]
[BlackElo "2984"]
[TimeControl "180+1"]
[EndTime "9:45:56 PDT"]
[Termination "vi_pranav won on time"]

1. e4 {[%clk 0:03:00.9]} 1... e5 {[%clk 0:02:59.5]} 2. Nf3 {[%clk 0:03:01.4]}
2... Nc6 {[%clk 0:03:00.2]} 3. Bc4 {[%clk 0:03:01.8]} 3... Nf6 {[%clk
0:03:00.1]} 4. d3 {[%clk 0:03:02.2]} 4... h6 {[%clk 0:02:59.9]} 5. O-O {[%clk
0:03:00.4]} 5... d6 {[%clk 0:03:00.3]} 6. d4 {[%clk 0:03:00.2]} 6... Bg4 {[%clk
0:02:44.6]} 7. dxe5 {[%clk 0:02:59]} 7... dxe5 {[%clk 0:02:43.8]} 8. Nbd2 {[%clk
0:02:55.4]} 8... Bc5 {[%clk 0:02:38.7]} 9. h3 {[%clk 0:02:53.2]} 9... Bh5 {[%clk
0:02:36.8]} 10. c3 {[%clk 0:02:50.7]} 10... O-O {[%clk 0:02:34]} 11. b4 {[%clk
0:02:38.7]} 11... Bd6 {[%clk 0:02:29.1]} 12. Qe2 {[%clk 0:02:31.3]} 12... a5
{[%clk 0:02:26.9]} 13. b5 {[%clk 0:02:30.9]} 13... Ne7 {[%clk 0:02:26.7]} 14. g4
{[%clk 0:02:28.9]} 14... Ng6 {[%clk 0:01:54.6]} 15. gxh5 {[%clk 0:02:26.3]}
15... Nf4 {[%clk 0:01:54.4]} 16. Qd1 {[%clk 0:02:08.9]} 16... N6xh5 {[%clk
0:01:32.3]} 17. Nh2 {[%clk 0:02:00]} 17... Nxh3+ {[%clk 0:01:14.1]} 18. Kh1
{[%clk 0:01:59.3]} 18... N5f4 {[%clk 0:01:02.1]} 19. Qg4 {[%clk 0:01:37.4]}
19... Bc5 {[%clk 0:00:42.3]} 20. Ndf3 {[%clk 0:01:36.7]} 20... h5 {[%clk
0:00:24.2]} 21. Qg3 {[%clk 0:01:24.4]} 21... Qf6 {[%clk 0:00:23.5]} 22. Bxf4
{[%clk 0:01:15.9]} 22... Nxf2+ {[%clk 0:00:20.7]} 23. Rxf2 {[%clk 0:00:29.8]}
23... exf4 {[%clk 0:00:20.6]} 24. Qg1 {[%clk 0:00:26.7]} 24... Bxf2 {[%clk
0:00:19]} 25. Qxf2 {[%clk 0:00:27]} 25... Qxc3 {[%clk 0:00:19.6]} 26. Qf1 {[%clk
0:00:27.3]} 26... Rad8 {[%clk 0:00:19.3]} 27. Rc1 {[%clk 0:00:26.7]} 27... Qb2
{[%clk 0:00:19.1]} 28. Ng5 {[%clk 0:00:24.3]} 28... g6 {[%clk 0:00:09.2]} 29.
Nhf3 {[%clk 0:00:23]} 29... Rde8 {[%clk 0:00:05.3]} 30. Re1 {[%clk 0:00:20.7]}
30... Kg7 {[%clk 0:00:05.2]} 31. e5 {[%clk 0:00:20.3]} 31... f6 {[%clk
0:00:02.7]} 32. exf6+ {[%clk 0:00:19.3]} 32... Qxf6 {[%clk 0:00:01.5]} 33. Ne6+
{[%clk 0:00:19]} 33... Kh6 {[%clk 0:00:01.9]} 34. Nxf8 {[%clk 0:00:17.4]} 34...
Rxf8 {[%clk 0:00:02.8]} 35. Re6 {[%clk 0:00:16.3]} 35... Qf5 {[%clk 0:00:02.9]}
36. Qd3 {[%clk 0:00:11.9]} 36... Qg4 {[%clk 0:00:02.7]} 37. Ne5 {[%clk
0:00:09.1]} 37... Qh4+ {[%clk 0:00:01.8]} 38. Kg1 {[%clk 0:00:07.9]} 38... Qg5+
{[%clk 0:00:01.9]} 39. Kf1 {[%clk 0:00:07.3]} 39... Rf6 {[%clk 0:00:02]} 40.
Rxf6 {[%clk 0:00:06.2]} 40... Qxf6 {[%clk 0:00:02.9]} 41. Nf3 {[%clk 0:00:04.9]}
41... g5 {[%clk 0:00:02.6]} 42. Nd2 {[%clk 0:00:04.2]} 42... g4 {[%clk
0:00:02.6]} 43. Ne4 {[%clk 0:00:03.5]} 43... Qa1+ {[%clk 0:00:03]} 44. Kg2
{[%clk 0:00:03.5]} 44... Qb2+ {[%clk 0:00:02.7]} 45. Kg1 {[%clk 0:00:01.1]}
45... Qc1+ {[%clk 0:00:03]} 0-1